{"text_format":"1","workbook":"xlsx","n_sheets":6,"sheets":["PRV","Turbine","Scenario","Blank for Calculation","Properties","Functions"],"not_rendered":{"charts":0,"images":3,"macros":1,"external_links":0,"defined_names":60,"comments":2,"pivot_tables":0},"unopened":[],"bounds":{"document_bytes":16777216,"sheet_cells":100000,"rows_first":2000,"rows_last":500,"rows_between":2000,"halvings":0,"cell_chars":16384,"cell_head_chars":4096},"cells_cut":0,"cells_raw":0,"read":"whole","date_system":"1900"}

{"sheet":"PRV","index":0,"n_rows":86,"n_cols":17,"rows_kept":86,"cut":false,"hidden":false,"merged":[[44,2,44,7],[44,11,44,16],[0,1,0,17],[0,32,0,33],[2,2,2,7],[2,11,2,16]]}
[null,"Pressure Reducing Station\nCalculator"]
[]
[null,null,{"$f":"\"PRESSURE REDUCING STATION 1 - \"&ROUND(D17,0)&\"/\"&ROUND(D36,0)","v":"PRESSURE REDUCING STATION 1 - 850/150"},null,null,null,null,null,null,null,null,{"$f":"\"PRESSURE REDUCING STATION 2 - \"&ROUND(M17,0)&\"/\"&ROUND(M36,0)","v":"PRESSURE REDUCING STATION 2 - 850/150"}]
[null,null,null,null,null,null,null,{"$f":"(D23+M23)/1000","v":603},"steam"]
[null,null,null,null,null,null,null,{"$f":"H6-H4","v":98.418822956406302},"water"]
[null,null,{"$f":"ROUND(D31/1000,0) & \" klb/hr, \" & ROUND(D27,0) & \" psig, \" & ROUND(IF(D29>0,D29,G27),0) & \" °F\"","v":"66 klb/hr, 450 psig, 300 °F"},null,null,null,null,{"$f":"(D42+M42)/1000","v":701.4188229564063},"total",null,null,{"$f":"ROUND(M31/1000,0) & \" klb/hr, \" & ROUND(M27,0) & \" psig, \" & ROUND(IF(M29>0,M29,P27),0) & \" °F\"","v":"33 klb/hr, 450 psig, 300 °F"}]
[null,null,{"$f":"G29","v":"Subcooled"},null,null,null,null,null,null,null,null,{"$f":"P29","v":"Subcooled"}]
[]
[]
[null,null,null,null,null,{"$f":"ROUND(T_ph(D36+Convert_Gauge_to_Absolute,G21),0) & \" °F\"","v":"818 °F"},null,null,null,null,null,null,null,null,{"$f":"ROUND(T_ph(M36+Convert_Gauge_to_Absolute,P21),0) & \" °F\"","v":"818 °F"}]
[null,null,{"$f":"ROUND(D23/1000,0) & \" klb/hr, \" & ROUND(D17,0) & \" psig, \" & ROUND(D21,0) & \" °F\"","v":"403 klb/hr, 850 psig, 870 °F"},null,null,null,null,{"$f":"ROUND(D42/1000,0) & \" klb/hr, \" & ROUND(D36,0) & \" psig, \" & ROUND(D40,0) & \" °F\"","v":"469 klb/hr, 150 psig, 500 °F"},null,null,null,{"$f":"ROUND(M23/1000,0) & \" klb/hr, \" & ROUND(M17,0) & \" psig, \" & ROUND(M21,0) & \" °F\"","v":"200 klb/hr, 850 psig, 870 °F"},null,null,null,null,{"$f":"ROUND(M42/1000,0) & \" klb/hr, \" & ROUND(M36,0) & \" psig, \" & ROUND(M40,0) & \" °F\"","v":"233 klb/hr, 150 psig, 500 °F"}]
[null,null,{"$f":"G19","v":"Superheated"},null,null,null,null,{"$f":"G38","v":"Superheated"},null,null,null,{"$f":"P19","v":"Superheated"},null,null,null,null,{"$f":"P38","v":"Superheated"}]
[]
[]
[null,null,"Inlet Steam Section",null,null,null,null,null,null,null,null,"Inlet Steam Section"]
[null,null,null,null,null,null,"Sat. Temp",null,null,null,null,null,null,null,null,"Sat. Temp"]
[null,null,"Steam Pressure :",850," psig",null,{"$f":"Tsat_p(D17+Convert_Gauge_to_Absolute)","v":527.30731122880638}," °F",null,null,null,"Steam Pressure :",850," psig",null,{"$f":"Tsat_p(M17+Convert_Gauge_to_Absolute)","v":527.30731122880638}," °F"]
[null,null,null,null,null,null,"State",null,null,null,null,null,null,null,null,"State"]
[null,null,"Degree of Superheat :",342.7," °F",null,{"$f":"IF(D19=0,\"Saturated\",\"Superheated\")","v":"Superheated"},null,null,null,null,"Degree of Superheat :",342.7," °F",null,{"$f":"IF(M19=0,\"Saturated\",\"Superheated\")","v":"Superheated"}]
[null,null,null,null,null,null,"Enthalpy",null,null,null,null,null,null,null,null,"Enthalpy"]
[null,null,"Temperature :",{"$f":"D19+G17","v":870.00731122880643}," °F",null,{"$f":"IF(G19=\"Saturated\",hV_p(D17+Convert_Gauge_to_Absolute),h_pt(D17+Convert_Gauge_to_Absolute,D21))","v":1436.3706285533879},"Btu/lb",null,null,null,"Temperature :",{"$f":"M19+P17","v":870.00731122880643}," °F",null,{"$f":"IF(P19=\"Saturated\",hV_p(M17+Convert_Gauge_to_Absolute),h_pt(M17+Convert_Gauge_to_Absolute,M21))","v":1436.3706285533879},"Btu/lb"]
[null,null,null,null,null,null,"Entropy",null,null,null,null,null,null,null,null,"Entropy"]
[null,null,"Flow :",{"$f":"403000","v":403000}," lb/hr",null,{"$f":"IF(G19=\"Saturated\",sV_p(D17+Convert_Gauge_to_Absolute),s_pT(D17+Convert_Gauge_to_Absolute,D21))","v":1.6185904153897477},"Btu/lb°F",null,null,null,"Flow :",{"$f":"200000","v":200000}," lb/hr",null,{"$f":"IF(P19=\"Saturated\",sV_p(M17+Convert_Gauge_to_Absolute),s_pT(M17+Convert_Gauge_to_Absolute,M21))","v":1.6185904153897477},"Btu/lb°F"]
[]
[null,null,"Desuperheating Water Section",null,null,null,null,null,null,null,null,"Desuperheating Water Section"]
[null,null,null,null,null,null,"Sat. Temp",null,null,null,null,null,null,null,null,"Sat. Temp"]
[null,null,"Water Pressure :",450," psig",null,{"$f":"Tsat_p(D27+Convert_Gauge_to_Absolute)","v":459.56148318192868}," °F",null,null,null,"Water Pressure :",450," psig",null,{"$f":"Tsat_p(M27+Convert_Gauge_to_Absolute)","v":459.56148318192868}," °F"]
[null,null,null,null,null,null,"State",null,null,null,null,null,null,null,null,"State"]
[null,null,"Water Temperature :",300," °F",null,{"$f":"IF(D29=\"\",\"Saturated\",IF(D29>G27,\"Superheated\",\"Subcooled\"))","v":"Subcooled"},null,null,null,null,"Water Temperature :",300," °F",null,{"$f":"IF(M29=\"\",\"Saturated\",IF(M29>P27,\"Superheated\",\"Subcooled\"))","v":"Subcooled"}]
[null,null,null,null,null,null,"Enthalpy",null,null,null,null,null,null,null,null,"Enthalpy"]
[null,null,"Flow Required :",{"$f":"D23*(G21-G40)/(G40-G31)","v":65775.763932722606}," lb/hr",null,{"$f":"IF(G29=\"Saturated\",hV_p(D27+Convert_Gauge_to_Absolute),h_pt(D27+Convert_Gauge_to_Absolute,D29))","v":270.49064818271205},"Btu/lb",null,null,null,"Flow Required :",{"$f":"M23*(P21-P40)/(P40-P31)","v":32643.059023683676}," lb/hr",null,{"$f":"IF(P29=\"Saturated\",hV_p(M27+Convert_Gauge_to_Absolute),h_pt(M27+Convert_Gauge_to_Absolute,M29))","v":270.49064818271205},"Btu/lb"]
[null,null,null,{"$f":"v_ph(D27+Convert_Gauge_to_Absolute,G31)*D31*Convert_ft3_to_gal/60","v":142.85138678250948},"gpm",null,null,null,null,null,null,null,{"$f":"v_ph(M27+Convert_Gauge_to_Absolute,P31)*M31*Convert_ft3_to_gal/60","v":70.893988477672195},"gpm"]
[]
[null,null,"Outlet Steam Section",null,null,null,null,null,null,null,null,"Outlet Steam Section"]
[null,null,null,null,null,null,"Sat. Temp",null,null,null,null,null,null,null,null,"Sat. Temp"]
[null,null,"Steam Pressure :",150," psig",null,{"$f":"Tsat_p(D36+Convert_Gauge_to_Absolute)","v":365.87227218423118}," °F",null,null,null,"Steam Pressure :",150," psig",null,{"$f":"Tsat_p(M36+Convert_Gauge_to_Absolute)","v":365.87227218423118}," °F"]
[null,null,null,null,null,null,"State",null,null,null,null,null,null,null,null,"State"]
[null,null,"Degree of Superheat :",134.1," °F",null,{"$f":"IF(D38=0,\"Saturated\",IF(D38>0,\"Superheated\",\"Subcooled\"))","v":"Superheated"},null,null,null,null,"Degree of Superheat :",134.1," °F",null,{"$f":"IF(M38=0,\"Saturated\",IF(M38>0,\"Superheated\",\"Subcooled\"))","v":"Superheated"}]
[null,null,null,null,null,null,"Enthalpy",null,null,null,null,null,null,null,null,"Enthalpy"]
[null,null,"Temperature :",{"$f":"D38+G36","v":499.9722721842312}," °F",null,{"$f":"IF(G38=\"Saturated\",hV_p(D36+Convert_Gauge_to_Absolute),h_pt(D36+Convert_Gauge_to_Absolute,D40))","v":1272.7814410079441},"Btu/lb",null,null,null,"Temperature :",{"$f":"M38+P36","v":499.9722721842312}," °F",null,{"$f":"IF(P38=\"Saturated\",hV_p(M36+Convert_Gauge_to_Absolute),h_pt(M36+Convert_Gauge_to_Absolute,M40))","v":1272.7814410079441},"Btu/lb"]
[]
[null,null,"Flow :",{"$f":"D23+D31","v":468775.76393272262}," lb/hr",null,null,null,null,null,null,"Flow :",{"$f":"M23+M31","v":232643.05902368369}," lb/hr"]
[]
[]
[null,null,{"$f":"\"PRESSURE REDUCING STATION 3 - \"&ROUND(D59,0)&\"/\"&ROUND(D78,0)","v":"PRESSURE REDUCING STATION 3 - 125/50"},null,null,null,null,null,null,null,null,{"$f":"\"PRESSURE REDUCING STATION 4 - \"&ROUND(M59,0)&\"/\"&ROUND(M78,0)","v":"PRESSURE REDUCING STATION 4 - 50/50"}]
[null,null,null,null,null,null,null,{"$f":"(D65+M65)/1000","v":900},"steam"]
[null,null,null,null,null,null,null,{"$f":"H48-H46","v":84.961541753396887},"water"]
[null,null,{"$f":"ROUND(D73/1000,0) & \" klb/hr, \" & ROUND(D69,0) & \" psig, \" & ROUND(IF(D71>0,D71,G69),0) & \" °F\"","v":"41 klb/hr, 450 psig, 300 °F"},null,null,null,null,{"$f":"(D84+M84)/1000","v":984.96154175339689},"total",null,null,{"$f":"ROUND(M73/1000,0) & \" klb/hr, \" & ROUND(M69,0) & \" psig, \" & ROUND(IF(M71>0,M71,P69),0) & \" °F\"","v":"44 klb/hr, 450 psig, 300 °F"}]
[null,null,{"$f":"G71","v":"Subcooled"},null,null,null,null,null,null,null,null,{"$f":"P71","v":"Subcooled"}]
[]
[]
[null,null,null,null,null,{"$f":"ROUND(T_ph(D78+Convert_Gauge_to_Absolute,G63),0) & \" °F\"","v":"472 °F"},null,null,null,null,null,null,null,null,{"$f":"ROUND(T_ph(M78+Convert_Gauge_to_Absolute,P63),0) & \" °F\"","v":"481 °F"}]
[null,null,{"$f":"ROUND(D65/1000,0) & \" klb/hr, \" & ROUND(D59,0) & \" psig, \" & ROUND(D63,0) & \" °F\"","v":"450 klb/hr, 125 psig, 488 °F"},null,null,null,null,{"$f":"ROUND(D84/1000,0) & \" klb/hr, \" & ROUND(D78,0) & \" psig, \" & ROUND(D82,0) & \" °F\"","v":"491 klb/hr, 50 psig, 308 °F"},null,null,null,{"$f":"ROUND(M65/1000,0) & \" klb/hr, \" & ROUND(M59,0) & \" psig, \" & ROUND(M63,0) & \" °F\"","v":"450 klb/hr, 50 psig, 481 °F"},null,null,null,null,{"$f":"ROUND(M84/1000,0) & \" klb/hr, \" & ROUND(M78,0) & \" psig, \" & ROUND(M82,0) & \" °F\"","v":"494 klb/hr, 50 psig, 308 °F"}]
[null,null,{"$f":"G61","v":"Superheated"},null,null,null,null,{"$f":"G80","v":"Superheated"},null,null,null,{"$f":"P61","v":"Superheated"},null,null,null,null,{"$f":"P80","v":"Superheated"}]
[]
[]
[null,null,"Inlet Steam Section",null,null,null,null,null,null,null,null,"Inlet Steam Section"]
[null,null,null,null,null,null,"Sat. Temp",null,null,null,null,null,null,null,null,"Sat. Temp"]
[null,null,"Steam Pressure :",125," psig",null,{"$f":"Tsat_p(D59+Convert_Gauge_to_Absolute)","v":352.87053731296623}," °F",null,null,null,"Steam Pressure :",{"$f":"D78","v":50}," psig",null,{"$f":"Tsat_p(M59+Convert_Gauge_to_Absolute)","v":297.65148506850733}," °F"]
[null,null,null,null,null,null,"State",null,null,null,null,null,null,null,null,"State"]
[null,null,"Degree of Superheat :",135," °F",null,{"$f":"IF(D61=0,\"Saturated\",\"Superheated\")","v":"Superheated"},null,null,null,null,"Degree of Superheat :",183.3," °F",null,{"$f":"IF(M61=0,\"Saturated\",\"Superheated\")","v":"Superheated"}]
[null,null,null,null,null,null,"Enthalpy",null,null,null,null,null,null,null,null,"Enthalpy"]
[null,null,"Temperature :",{"$f":"D61+G59","v":487.87053731296623}," °F",null,{"$f":"IF(G61=\"Saturated\",hV_p(D59+Convert_Gauge_to_Absolute),h_pt(D59+Convert_Gauge_to_Absolute,D63))","v":1269.0254171197957},"Btu/lb",null,null,null,"Temperature :",{"$f":"M61+P59","v":480.95148506850734}," °F",null,{"$f":"IF(P61=\"Saturated\",hV_p(M59+Convert_Gauge_to_Absolute),h_pt(M59+Convert_Gauge_to_Absolute,M63))","v":1273.3366617555155},"Btu/lb"]
[null,null,null,null,null,null,"Entropy",null,null,null,null,null,null,null,null,"Entropy"]
[null,null,"Flow :",450000," lb/hr",null,{"$f":"IF(G61=\"Saturated\",sV_p(D59+Convert_Gauge_to_Absolute),s_pT(D59+Convert_Gauge_to_Absolute,D63))","v":1.662270419168814},"Btu/lb°F",null,null,null,"Flow :",450000," lb/hr",null,{"$f":"IF(P61=\"Saturated\",sV_p(M59+Convert_Gauge_to_Absolute),s_pT(M59+Convert_Gauge_to_Absolute,M63))","v":1.7496911819696643},"Btu/lb°F"]
[]
[null,null,"Desuperheating Water Section",null,null,null,null,null,null,null,null,"Desuperheating Water Section"]
[null,null,null,null,null,null,"Sat. Temp",null,null,null,null,null,null,null,null,"Sat. Temp"]
[null,null,"Water Pressure :",450," psig",null,{"$f":"Tsat_p(D69+Convert_Gauge_to_Absolute)","v":459.56148318192868}," °F",null,null,null,"Water Pressure :",450," psig",null,{"$f":"Tsat_p(M69+Convert_Gauge_to_Absolute)","v":459.56148318192868}," °F"]
[null,null,null,null,null,null,"State",null,null,null,null,null,null,null,null,"State"]
[null,null,"Water Temperature :",300," °F",null,{"$f":"IF(D71=\"\",\"Saturated\",IF(D71>G69,\"Superheated\",\"Subcooled\"))","v":"Subcooled"},null,null,null,null,"Water Temperature :",300," °F",null,{"$f":"IF(M71=\"\",\"Saturated\",IF(M71>P69,\"Superheated\",\"Subcooled\"))","v":"Subcooled"}]
[null,null,null,null,null,null,"Enthalpy",null,null,null,null,null,null,null,null,"Enthalpy"]
[null,null,"Flow Required :",{"$f":"D65*(G63-G82)/(G82-G73)","v":41419.900751336943}," lb/hr",null,{"$f":"IF(G71=\"Saturated\",hV_p(D69+Convert_Gauge_to_Absolute),h_pt(D69+Convert_Gauge_to_Absolute,D71))","v":270.49064818271205},"Btu/lb",null,null,null,"Flow Required :",{"$f":"M65*(P63-P82)/(P82-P73)","v":43541.641002059863}," lb/hr",null,{"$f":"IF(P71=\"Saturated\",hV_p(M69+Convert_Gauge_to_Absolute),h_pt(M69+Convert_Gauge_to_Absolute,M71))","v":270.49064818271205},"Btu/lb"]
[null,null,null,{"$f":"v_ph(D69+Convert_Gauge_to_Absolute,G73)*D73*Convert_ft3_to_gal/60","v":89.955477655483534},"gpm",null,null,null,null,null,null,null,{"$f":"v_ph(M69+Convert_Gauge_to_Absolute,P73)*M73*Convert_ft3_to_gal/60","v":94.563459670227616},"gpm"]
[]
[null,null,"Outlet Steam Section",null,null,null,null,null,null,null,null,"Outlet Steam Section"]
[null,null,null,null,null,null,"Sat. Temp",null,null,null,null,null,null,null,null,"Sat. Temp"]
[null,null,"Steam Pressure :",50," psig",null,{"$f":"Tsat_p(D78+Convert_Gauge_to_Absolute)","v":297.65148506850733}," °F",null,null,null,"Steam Pressure :",50," psig",null,{"$f":"Tsat_p(M78+Convert_Gauge_to_Absolute)","v":297.65148506850733}," °F"]
[null,null,null,null,null,null,"State",null,null,null,null,null,null,null,null,"State"]
[null,null,"Degree of Superheat :",10," °F",null,{"$f":"IF(D80=0,\"Saturated\",IF(D80>0,\"Superheated\",\"Subcooled\"))","v":"Superheated"},null,null,null,null,"Degree of Superheat :",10," °F",null,{"$f":"IF(M80=0,\"Saturated\",IF(M80>0,\"Superheated\",\"Subcooled\"))","v":"Superheated"}]
[null,null,null,null,null,null,"Enthalpy",null,null,null,null,null,null,null,null,"Enthalpy"]
[null,null,"Temperature :",{"$f":"D80+G78","v":307.65148506850733}," °F",null,{"$f":"IF(G80=\"Saturated\",hV_p(D78+Convert_Gauge_to_Absolute),h_pt(D78+Convert_Gauge_to_Absolute,D82))","v":1184.8627469411997},"Btu/lb",null,null,null,"Temperature :",{"$f":"M80+P78","v":307.65148506850733}," °F",null,{"$f":"IF(P80=\"Saturated\",hV_p(M78+Convert_Gauge_to_Absolute),h_pt(M78+Convert_Gauge_to_Absolute,M82))","v":1184.8627469411997},"Btu/lb"]
[]
[null,null,"Flow :",{"$f":"D65+D73","v":491419.90075133694}," lb/hr",null,null,null,null,null,null,"Flow :",{"$f":"M65+M73","v":493541.64100205986}," lb/hr"]
[]
[null,null,"Copy Rights: Not to be copied or distributed without specific permission from Inveno Engineering LLC; kelly.paffel@invenoeng.com"]

{"sheet":"Turbine","index":1,"n_rows":55,"n_cols":25,"rows_kept":55,"cut":false,"hidden":false,"merged":[[0,1,0,27],[0,42,0,43]]}
[null,"Steam Turbine\nCalculator"]
[null,"This excel sheet calculates the power that turbine can generate with specific inlet and outlet conditions."]
[]
[null,null,null,null,null,null,"Sat. Temp",null,null,null,null,null,null,null,null,"Shaft Energy"]
[null,null,"Inlet Steam Pressure :",831.2," psig",null,{"$f":"Tsat_p(D5+Convert_Gauge_to_Absolute)","v":524.7361863255029}," °F",null,null,"Efficiency :","1st Stage",80," %",null,{"$f":"(G9-G23)*D15*Convert_btu_to_kW/1000","v":6.8050772161205186},"MW"]
[null,null,null,null,null,null,"State"]
[null,null,"Degree of Superheat :",295," °F",null,{"$f":"IF(D7=0,\"Saturated\",\"Superheated\")","v":"Superheated"},null,null,null,"Efficiency :","2nd Stage",80," %",null,{"$f":"D28*(G9-G36)*Convert_btu_to_kW/1000","v":11.886644478701662},"MW"]
[null,null,null,null,null,null,"Enthalpy"]
[null,null,"Inlet Temperature :",{"$f":"D7+G5","v":819.7361863255029}," °F",null,{"$f":"IF(G7=\"Saturated\",hV_p(D5+Convert_Gauge_to_Absolute),h_pt(D5+Convert_Gauge_to_Absolute,D9))","v":1408.0203680569255},"Btu/lb",null,null,"Efficiency :","Cond Stage",80," %",null,{"$f":"D41*(G9-G49)*Convert_btu_to_kW/1000","v":15.082864779350585},"MW"]
[null,null,null,null,null,null,"Entropy"]
[null,null,"Steam Flow :",{"$f":"D15+D28+D41","v":497500}," lb/hr",null,{"$f":"IF(G7=\"Saturated\",sV_p(D5+Convert_Gauge_to_Absolute),s_pT(D5+Convert_Gauge_to_Absolute,D9))","v":1.5991313527669846},"Btu/lb°F",null,null,null,null,null,null,"Total Shaft Energy",{"$f":"P5+P7+P9","v":33.774586474172764},"MW"]
[]
[]
[null,null,null,null,null,null,null,null,null,null,null,null,null,null,null,null,null,null,null,null,null,"current"]
[null,null,"Outlet Steam Flow :",156600," lb/hr",null,null,null,null,null,null,null,null,null,null,null,null,null,null,null,150,{"$f":"D15/D11","v":0.31477386934673368},0.28444736409919524,0.14228456913827656,0.51911969696969695]
[null,null,null,null,null,null,"Sat. Temp",null,null,null,null,null,null,null,null,null,null,null,null,null,50,{"$f":"D28/D11","v":0.39718592964824123},0.58630316965018892,0.60941883767535066,0.44382121212121212]
[null,null,"Outlet Steam Pressure :",141.80000000000001," psig",null,{"$f":"Tsat_p(D17+Convert_Gauge_to_Absolute)","v":361.79003180727113}," °F",null,null,null,null,null,null,null,null,null,null,null,null,"cond",{"$f":"D41/D11","v":0.28804020100502514},0.12924946625061587,0.24829659318637273,3.705909090909091E-2]
[null,null,null,null,null,null,"State"]
[null,null,"Outlet Temperature :",{"$f":"T_ph(D17+Convert_Gauge_to_Absolute,G23)","v":473.88309111553747}," °F",null,{"$f":"IF(D21>0,\"Superheated\",IF(D23=0,\"Liquid\",\"Saturated\"))","v":"Superheated"}]
[null,null,null,null,null,null,"Enthalpy (Isentropic)"]
[null,null,"Degree of Superheat :",{"$f":"IF(D19>=G17,D19-G17,\"\")","v":112.09305930826633}," °F",null,{"$f":"h_ps(D17+Convert_Gauge_to_Absolute,G11)","v":1222.6764401867595},"Btu/lb"]
[null,null,null,null,null,null,"Enthalpy (Actual)"]
[null,null,"Steam Quality :",{"$f":"x_ph(D17+Convert_Gauge_to_Absolute,G23)","v":1},null,null,{"$f":"G9-(M5/100*(G9-G21))","v":1259.7452257607927},"Btu/lb"]
[null,null,null,null,null,null,"Entropy (Actual)",null,null,null,null,null,{"$f":"D5","v":831.2},"psig",null,{"$f":"ROUND(D9,0) & \" °F temp\"","v":"820 °F temp"}]
[null,null,null,null,null,null,{"$f":"IF(G19=\"Saturated\",sV_p(D17+Convert_Gauge_to_Absolute),s_pT(D17+Convert_Gauge_to_Absolute,D19))","v":1.6403469905391321},"Btu/lb°F",null,null,null,null,null,null,null,{"$f":"ROUND(D11/1000,0) & \" klb/hr\"","v":"498 klb/hr"},null,null,null,null,null,null,null,{"$f":"ROUND(P11,1) & \" MW\"","v":"33.8 MW"}]
[]
[]
[null,null,"Outlet Steam Flow :",197600," lb/hr"]
[null,null,null,null,null,null,"Sat. Temp",null,null,null,null,null,null,null,null,{"$f":"ROUND(D15/1000,0) & \" klb/hr\"","v":"157 klb/hr"},null,null,null,null,null,null,null,{"$f":"ROUND(P11*1341.02209,0) & \" hp\"","v":"45292 hp"}]
[null,null,"Outlet Steam Pressure :",51.5," psig",null,{"$f":"Tsat_p(D30+Convert_Gauge_to_Absolute)","v":299.17446810846172}," °F",null,null,null,null,{"$f":"D17","v":141.80000000000001},"psig",null,null,null,null,null,{"$f":"ROUND(D28/1000,0) & \" klb/hr\"","v":"198 klb/hr"}]
[null,null,null,null,null,null,"State"]
[null,null,"Outlet Temperature :",{"$f":"T_ph(D30+Convert_Gauge_to_Absolute,G36)","v":341.57592842085114}," °F",null,{"$f":"IF(D34>0,\"Superheated\",IF(D36=0,\"Liquid\",\"Saturated\"))","v":"Superheated"}]
[null,null,null,null,null,null,"Enthalpy (Isentropic)"]
[null,null,"Degree of Superheat :",{"$f":"IF(D32>=G30,D32-G30,\"\")","v":42.401460312389418}," °F",null,{"$f":"h_ps(D30+Convert_Gauge_to_Absolute,G11)","v":1151.4482874640353},"Btu/lb",null,null,null,null,{"$f":"D30","v":51.5},"psig"]
[null,null,null,null,null,null,"Enthalpy (Actual)"]
[null,null,"Steam Quality :",{"$f":"x_ph(D30+Convert_Gauge_to_Absolute,G36)","v":1},null,null,{"$f":"G23-(M7/100*(G21-G34))","v":1202.7627035826133},"Btu/lb",null,null,null,null,null,null,null,null,null,null,null,null,null,null,{"$f":"ROUND(D43,0) & \" psig\"","v":"-11 psig"}]
[null,null,null,null,null,null,"Entropy (Actual)"]
[null,null,null,null,null,null,{"$f":"IF(G32=\"Saturated\",sV_p(D30+Convert_Gauge_to_Absolute),s_pT(D30+Convert_Gauge_to_Absolute,D32))","v":1.6659437324722244},"Btu/lb°F",null,null,null,null,null,null,null,null,null,null,null,null,null,null,{"$f":"ROUND(D41/1000,0)&\" klb/hr\"","v":"143 klb/hr"}]
[]
[]
[null,null,"Outlet Steam Flow :",143300," lb/hr"]
[null,null,null,null,null,null,"Sat. Temp"]
[null,null,"Outlet Steam Pressure :",-11.149197559999999," psig",null,{"$f":"Tsat_p(D43+Convert_Gauge_to_Absolute)","v":148.04697930620566}," °F"]
[null,null,null,null,null,null,"State"]
[null,null,"Outlet Temperature :",{"$f":"T_ph(D43+Convert_Gauge_to_Absolute,G49)","v":148.04697930620566}," °F",null,{"$f":"IF(D47>0,\"Superheated\",IF(D49=0,\"Liquid\",\"Saturated\"))","v":"Saturated"}]
[null,null,null,null,null,null,"Enthalpy (Isentropic)"]
[null,null,"Degree of Superheat :",{"$f":"IF(D45>=G43,D45-G43,\"\")","v":0}," °F",null,{"$f":"h_ps(D43+Convert_Gauge_to_Absolute,G11)","v":959.09441851415431},"Btu/lb"]
[null,null,null,null,null,null,"Enthalpy (Actual)"]
[null,null,"Steam Quality :",{"$f":"x_ph(D43+Convert_Gauge_to_Absolute,G49)","v":0.92461750401036824},null,null,{"$f":"G36-(M9/100*(G34-G47))","v":1048.8796084227085},"Btu/lb"]
[null,null,null,null,null,null,"Entropy (Actual)"]
[null,null,null,null,null,null,{"$f":"IF(G45=\"Saturated\",sV_p(D43+Convert_Gauge_to_Absolute),s_pT(D43+Convert_Gauge_to_Absolute,D45))","v":1.8720204488321261},"Btu/lb°F"]
[]
[]
[]
[null,null,"Copy Rights: Not to be copied or distributed without specific permission from Inveno Engineering LLC; kelly.paffel@invenoeng.com"]

{"sheet":"Scenario","index":2,"n_rows":4,"n_cols":10,"rows_kept":4,"cut":false,"hidden":false,"merged":[]}
[]
[]
["Scenario #","Total MW Required (MW)","Power from TG 1","Power from TG 2","Tie MW","Total Steam Flow Required by 150# & 50# consumer","Steam Flow to TG 1","Steam Flow to TG 2","Steam Flow to 850/150 PRV 1 - Old (Max Flow 403klb)","Steam Flow to 850/150 PRV 1 - New (Max Flow 200klb)"]
[1,70,0,35,{"$f":"B4-C4-D4","v":35},null,0,660]

{"sheet":"Blank for Calculation","index":3,"n_rows":21,"n_cols":5,"rows_kept":21,"cut":false,"hidden":false,"merged":[]}
["User Calculations Sheet"]
[]
["This is a blank sheet provided for the user to make notes, carry out calculations etc."]
[]
[]
[]
[]
[null,"kW","lb/hr"]
[null,28891.326544327829,500000]
[null,11651.950314207703,{"$f":"B13-C9-C11","v":362400}]
[null,5345.4677024715784,{"$f":"B15","v":117600}]
[]
[null,980000]
[null,0.12]
[null,{"$f":"B13*B14","v":117600}]
[]
[]
[null,"flow","temp","pressure","enthalpy"]
["TG2",300000,360,50,{"$f":"h_pt(D19+Convert_Gauge_to_Absolute,C19)","v":1212.6518797130486}]
["PRV",300000,481,50,{"$f":"h_pt(D20+Convert_Gauge_to_Absolute,C20)","v":1273.3605979233369}]
["Total",{"$f":"SUM(B19:B20)","v":600000},{"$f":"T_ph(D21+Convert_Gauge_to_Absolute,E21)","v":419.83558182289391},50,{"$f":"(B19*E19+B20*E20)/B21","v":1243.0062388181927}]

{"sheet":"Properties","index":4,"n_rows":29,"n_cols":8,"rows_kept":29,"cut":false,"hidden":false,"merged":[]}
[null,"Steam Tables  (English Units)"]
[]
[]
[]
[]
[null,"Saturation properties given temperature",null,null,null,"Saturation properties given pressure"]
[null,"Temperature",50,"degF",null,"Pressure",12.57,"psi (a)"]
[null,"Saturation pressure",{"$f":"psat_t(C7)","v":0.17813301000769874},"psi (a)",null,"Saturation temperature",{"$f":"Tsat_p(G7)","v":204.17777791927469},"degF"]
[null,"Liquid",null,null,null,"Liquid"]
[null,"Enthalpy",{"$f":"hL_T(C7)","v":18.065816271919097},"btu/lb",null,"Enthalpy",{"$f":"hL_p(G7)","v":172.30242549737997},"btu/lb"]
[null,"Density",{"$f":"rhoL_T(C7)","v":62.406342618778162},"lb /ft3",null,"Density",{"$f":"rhoL_P(G7)","v":60.020209137088131},"lb /ft3"]
[null,"Entropy",{"$f":"sL_T(C7)","v":3.6086052903275448E-2},"btu/(lb F)",null,"Entropy",{"$f":"sL_p(G7)","v":0.30038744224357444},"btu/(lb F)"]
[null,"Vapour",null,null,null,"Vapour"]
[null,"Vapour enthalpy",{"$f":"hV_T(C7)","v":1083.0738774464417},"btu/lb",null,"Vapour enthalpy",{"$f":"hV_p(G7)","v":1147.318490880599},"btu/lb"]
[null,"Vapour density",{"$f":"rhoV_T(C7)","v":5.8723286456754725E-4},"lb /ft3",null,"Vapour density",{"$f":"rhoV_p(G7)","v":3.2235542163525463E-2},"lb /ft3"]
[null,"Vapour Entropy",{"$f":"sV_T(C7)","v":2.1256916787390598},"btu/(lb F)",null,"vapour Entropy",{"$f":"sV_p(G7)","v":1.7691143714675075},"btu/(lb F)"]
[null,"Evaporation energy",{"$f":"C14-C10","v":1065.0080611745225},"btu/lb",null,"Evaporation energy",{"$f":"G14-G10","v":975.01606538321903},"btu/lb"]
[]
[null,"Properties given pressure and temperature",null,null,null,"Properties given pressure and enthalpy"]
[null,"Pressure",100,"psi (a)",null,"Pressure",12.57,"psi (a)"]
[null,"Temperature",50,"degF",null,"Enthalpy",2788,"btu/lb"]
[null,"Enthalpy",{"$f":"h_pt(C20,C21)","v":18.354327600849064},"btu/lb",null,"Temperature",{"$f":"T_ph(G20,G21)","v":3074.5707483291626},"degF"]
[null,"Density",{"$f":"rho_pT(C20,C21)","v":62.426859281115377},"lb /ft3",null,"Density",{"$f":"rho_ph(G20,G21)","v":5.9703452166335897E-3},"lb /ft3"]
[null,"Entropy",{"$f":"s_pT(C20,C21)","v":3.6071463664522962E-2},"btu/(lb F)",null,"Entropy",{"$f":"s_ph(G20,G21)","v":2.674276314249977},"btu/(lb F)"]
[null,"Vapour fraction",{"$f":"x_ph(C20,C22)*100","v":0},"%",null,"Vapour fraction",{"$f":"x_ph(G20,G21)*100","v":100},"%"]
[null,"IF97 Region",{"$f":"region_pt(C20/10,C21+273.15)","v":1},null,null,"IF97 Region",{"$f":"region_ph(G20/10,G21)","v":2}]
[null,"Phase",{"$f":"IF(C26=2,\"Steam\",IF(C26=1,\"Liquid\",IF(C26=4,\"Mixture\",\"\")))","v":"Liquid"},null,null,"Phase",{"$f":"IF(G26=2,\"Steam\",IF(G26=1,\"Liquid\",IF(G26=4,\"Mixture\",\"\")))","v":"Steam"}]
[null,"Isobaric heat capacity ",{"$f":"Cp_pT(C20,C21)","v":1.0015340327424829},"btu/(lb F)",null,"Isobaric heat capacity ",{"$f":"Cp_ph(G20,G21)","v":0.67524179335823475},"btu/(lb F)"]
[null,"Speed of sound",{"$f":"w_pT(C20,C21)","v":4752.2401977897171},"ft/s",null,"Speed of sound",{"$f":"w_ph(G20,G21)","v":3414.439143641735},"ft/s"]

{"sheet":"Functions","index":5,"n_rows":112,"n_cols":8,"rows_kept":112,"cut":false,"hidden":false,"merged":[]}
["Steam Tables"]
[]
[]
[]
[]
[]
[]
["Temperature"]
[" Tsat_p",14.503773799999999,"psi",null,null,{"$f":"Tsat_p(B9)","v":211.2906535708841},"deg F","Saturation temperature"]
[" T_ph",1,"psi",100,"btu/lb",{"$f":"T_ph(B10,D10)","v":101.69433722352896},"deg F","Temperture as a function of pressure and enthalpy"]
[" T_ps",1,"psi",1,"btu/(lb F)",{"$f":"T_ps(B11,D11)","v":101.69433722352896},"deg F","Temperture as a function of pressure and entropy"]
[" T_hs",100,"btu/lb",0.2,"btu/(lb F)",{"$f":"T_hs(B12,D12)","v":40.712708761178419},"deg F","Temperture as a function of enthalpy and entropy"]
["Pressure"]
[" psat_T",100,"deg F",null,null,{"$f":"psat_t(B14)","v":0.95043933077881249},"psi (a)","Saturation pressure"]
[" p_hs",100,"btu/lb",{"$f":"F49","v":0.18512524760110738},"btu/(lb F)",{"$f":"p_hs(B15,D15)","v":5.9882919074278274},"psi (a)","Pressure as a function of h and s. "]
[" p_hrho",100,"btu/lb",5,"lb/ft3",{"$f":"p_hrho(B16,D16)","v":2.2737319182747444},"psi (a)","Pressure as a function of h and rho (density). Very unaccurate for solid water region since it's almost incompressible!"]
["Enthalpy"]
[" hV_p",1,"psi",null,null,{"$f":"hV_p(B18)","v":1105.4393386640004},"btu/lb","Saturated vapour enthalpy"]
[" hL_p",1,"psi",null,null,{"$f":"hL_p(B19)","v":69.728239049354812},"btu/lb","Saturated liquid enthalpy"]
[" hV_T",100,"deg F",null,null,{"$f":"hV_T(B20)","v":1104.7148547166025},"btu/lb","Saturated vapour enthalpy"]
[" hL_T",100,"deg F",null,null,{"$f":"hL_T(B21)","v":68.036985639994001},"btu/lb","Saturated liquid enthalpy"]
[" h_pT",14.503773799999999,"psi",68,"deg F",{"$f":"h_pt(B22,D22)","v":36.11857745798283},"btu/lb","Entalpy as a function of pressure and temperature."]
[" h_ps",1,"psi",1,"btu/(lb F)",{"$f":"h_ps(B23,D23)","v":556.63691364819874},"btu/lb","Entalpy as a function of pressure and entropy."]
[" h_px",1,"psi",0.5,null,{"$f":"h_px(B24,D24)","v":587.58378885667753},"btu/lb","Entalpy as a function of pressure and vapour fraction"]
[" h_Tx",100,"deg F",0.5,null,{"$f":"h_tx(B25,D25)","v":586.37592017829832},"btu/lb","Entalpy as a function of temperature and vapour fraction"]
[" h_prho",1,"psi",2,"lb/ft3",{"$f":"h_prho(B26,D26)","v":71.230953968579257},"btu/lb","Entalpy as a function of pressure and density. Observe for low temperatures (liquid) this equation has 2 solutions. (Not valid!!)"]
["Specific volume"]
[" vV_p",1,"psi",null,null,{"$f":"vV_p(B28)","v":333.50751891901803},"ft3/lb","Saturated vapour volume"]
[" vL_p",1,"psi",null,null,{"$f":"vL_p(B29)","v":1.613681120860341E-2},"ft3/lb","Saturated liquid volume"]
[" vV_T",100,"deg F",null,null,{"$f":"vV_T(B30)","v":349.8695998974697},"ft3/lb","Saturated vapour volume"]
[" vL_T",100,"deg F",null,null,{"$f":"vL_T(B31)","v":1.6131174327003114E-2},"ft3/lb","Saturated liquid volume"]
[" v_pT",1,"psi",100,"deg F",{"$f":"v_pT(B32,D32)","v":1.6131171891217523E-2},"ft3/lb","Specific volume as a function of pressure and temperature."]
[" v_ph",1,"psi",1000,"btu/lb",{"$f":"v_ph(B33,D33)","v":299.55682476050805},"ft3/lb","Specific volume as a function of pressure and enthalpy"]
[" v_ps",10,"psi",{"$f":"F49","v":0.18512524760110738},"btu/(lb F)",{"$f":"v_ps(B34,D34)","v":1.6255423844855975E-2},"ft3/lb","Specific volume as a function of pressure and entropy."]
["Density"]
[" rhoV_p",1,"psi",null,null,{"$f":"rhoV_p(B36)","v":2.9984331484976777E-3},"lb/ft3","Saturated vapour density"]
[" rhoL_p",1,"psi",null,null,{"$f":"rhoL_P(B37)","v":61.970112128897298},"lb/ft3","Saturated liquid density"]
[" rhoV_T",100,"deg F",null,null,{"$f":"rhoV_T(B38)","v":2.858207744522682E-3},"lb/ft3","Saturated vapour density"]
[" rhoL_T",100,"deg F",null,null,{"$f":"rhoL_T(B39)","v":61.991766980413153},"lb/ft3","Saturated liquid density"]
[" rho_pT",1,"psi",100,"deg F",{"$f":"rho_pT(B40,D40)","v":61.991776341087863},"lb/ft3","Density as a function of pressure and temperature."]
[" rho_ph",1,"psi",1000,"btu/lb",{"$f":"rho_ph(B41,D41)","v":3.3382647876558564E-3},"lb/ft3","Density as a function of pressure and enthalpy"]
[" rho_ps",1,"psi",1,"btu/(lb F)",{"$f":"rho_ps(B42,D42)","v":6.3776664978736569E-3},"lb/ft3","Density as a function of pressure and entropy."]
["Specific entropy "]
[" sV_p",1,"psi",null,null,{"$f":"sV_p(B44)","v":1.9776246796445243},"btu/(lb F)","Saturated vapour entropy"]
[" sL_p",1,"psi",null,null,{"$f":"sL_p(B45)","v":0.13263149847209779},"btu/(lb F)","Saturated liquid entropy"]
[" sV_T",50,"deg F",null,null,{"$f":"sV_T(B46)","v":2.1256916787390598},"btu/(lb F)","Saturated vapour entropy"]
[" sL_T",100,"deg F",null,null,{"$f":"sL_T(B47)","v":0.12961445130558455},"btu/(lb F)","Saturated liquid entropy"]
[" s_pT",1,"psi",50,"deg F",{"$f":"s_pT(B48,D48)","v":3.6085933900856779E-2},"btu/(lb F)","Specific entropy as a function of pressure and temperature (Returns saturated vapour entalpy if mixture.)"]
[" s_ph",10,"psi",100,"btu/lb",{"$f":"s_ph(B49,D49)","v":0.18512524760110738},"btu/(lb F)","Specific entropy as a function of pressure and enthalpy"]
["Specific internal energy "]
[" uV_p",1,"psi",null,null,{"$f":"uV_p(B51)","v":1043.7238674299194},"btu/lb","Saturated vapour internal energy"]
[" uL_p",1,"psi",null,null,{"$f":"uL_p(B52)","v":69.725252937044104},"btu/lb","Saturated liquid internal energy"]
[" uV_T",100,"deg F",null,null,{"$f":"uV_T(B53)","v":1043.1803048366698},"btu/lb","Saturated vapour internal energy"]
[" uL_T",100,"deg F",null,null,{"$f":"uL_T(B54)","v":68.034148512814212},"btu/lb","Saturated liquid internal energy"]
[" u_pT",1,"psi",100,"deg F",{"$f":"u_pT(B55,D55)","v":68.034131602610202},"btu/lb","Specific internal energy as a function of pressure and temperature."]
[" u_ph",1,"psi",1000,"btu/lb",{"$f":"u_ph(B56,D56)","v":944.56709503461354},"btu/lb","Specific internal energy as a function of pressure and enthalpy"]
[" u_ps",1,"psi",1,"btu/(lb F)",{"$f":"u_ps(B57,D57)","v":527.62164375518705},"btu/lb","Specific internal energy as a function of pressure and entropy."]
["Specific isobaric heat capacity "]
[" CpV_p",1,"psi",null,null,{"$f":"CpV_p(B59)","v":0.4610466176319381},"btu/(lb F)","Saturated vapour heat capacity "]
[" CpL_p",1,"psi",null,null,{"$f":"CpL_p(B60)","v":0.99809613194003055},"btu/(lb F)","Saturated liquid heat capacity "]
[" CpV_T",100,"deg F",null,null,{"$f":"CpV_T(B61)","v":0.46071413521990223},"btu/(lb F)","Saturated vapour heat capacity "]
[" CpL_T",100,"deg F",null,null,{"$f":"CpL_T(B62)","v":0.9981101482481709},"btu/(lb F)","Saturated liquid heat capacity "]
[" Cp_pT",1,"psi",100,"deg F",{"$f":"Cp_pT(B63,D63)","v":0.99810994311651391},"btu/(lb F)","Specific isobaric heat capacity as a function of pressure and temperature."]
[" Cp_ph",100,"psi",200,"btu/lb",{"$f":"Cp_ph(B64,D64)","v":1.010383515186803},"btu/(lb F)","Specific isobaric heat capacity as a function of pressure and enthalpy"]
[" Cp_ps",100,"psi",{"$f":"F49","v":0.18512524760110738},"btu/(lb F)",{"$f":"Cp_ps(B65,D65)","v":0.99831685085166899},"btu/(lb F)","Specific isobaric heat capacity as a function of pressure and entropy."]
["Specific isochoric heat capacity "]
[" CvV_p",1,"psi",null,null,{"$f":"CvV_p(B67)","v":0.3473815118397266},"btu/(lb F)","Saturated vapour isochoric heat capacity"]
[" CvL_p",1,"psi",null,null,{"$f":"CvL_p(B68)","v":0.97419487072272337},"btu/(lb F)","Saturated liquid isochoric heat capacity"]
[" CvV_T",100,"deg F",null,null,{"$f":"CvV_T(B69)","v":0.3471349756795683},"btu/(lb F)","Saturated vapour isochoric heat capacity"]
[" CvL_T",100,"deg F",null,null,{"$f":"CvL_T(B70)","v":0.97523713984845961},"btu/(lb F)","Saturated liquid isochoric heat capacity"]
[" Cv_pT",1,"psi",100,"deg F",{"$f":"Cv_pT(B71,D71)","v":0.97523690155523191},"btu/(lb F)","Specific isochoric heat capacity as a function of pressure and temperature."]
[" Cv_ph",100,"psi",200,"btu/lb",{"$f":"Cv_ph(B72,D72)","v":0.88674221718338608},"btu/(lb F)","Specific isochoric heat capacity as a function of pressure and enthalpy"]
[" Cv_ps",100,"psi",{"$f":"D65","v":0.18512524760110738},"btu/(lb F)",{"$f":"Cv_ps(B73,D73)","v":0.95412073194367009},"btu/(lb F)","Specific isochoric heat capacity as a function of pressure and entropy."]
["Speed of sound "]
[" wV_p",1,"psi",null,null,{"$f":"wV_p(B75)","v":1430.0233443387121},"ft/s","Saturated vapour speed of sound"]
[" wL_p",1,"psi",null,null,{"$f":"wL_p(B76)","v":5016.1265905500759},"ft/s","Saturated liquid speed of sound"]
[" wV_T",100,"deg F",null,null,{"$f":"wV_T(B77)","v":1427.980732399066},"ft/s","Saturated vapour speed of sound"]
[" wL_T",100,"deg F",null,null,{"$f":"wL_T(B78)","v":5010.5240656699543},"ft/s","Saturated liquid speed of sound"]
[" w_pT",1,"psi",100,"deg F",{"$f":"w_pT(B79,D79)","v":5010.5258732811444},"ft/s","Speed of sound as a function of pressure and temperature."]
[" w_ph",100,"psi",100,"btu/lb",{"$f":"w_ph(B80,D80)","v":5090.5177966055244},"ft/s","Speed of sound as a function of pressure and enthalpy"]
[" w_ps",100,"psi",{"$f":"D73","v":0.18512524760110738},"btu/(lb F)",{"$f":"w_ps(B81,D81)","v":5090.9193656722355},"ft/s","Speed of sound as a function of pressure and entropy."]
["Dynamic Viscosity"]
["Viscosity is not part of IAPWS Steam IF97. Equations from \"\"Revised Release on the IAPWS Formulation 1985 for the Viscosity of Ordinary Water Substance\"\", 2003 are used."]
["Viscosity in the mixed region (4) is interpolated according to the density. This is not true since it will be two fases."]
[" my_pT",1,"psi",100,"deg F",{"$f":"my_pT(B85,D85)","v":1.6478178107529025},"lb/ft/hr","Viscosity as a function of pressure and temperature."]
[" my_ph",100,"psi",100,"btu/lb",{"$f":"my_ph(B86,D86)","v":1.2111188734075722},"lb/ft/hr","Viscosity as a function of pressure and enthalpy"]
[" my_ps",100,"psi",{"$f":"D81","v":0.18512524760110738},"btu/(lb F)",{"$f":"my_ps(B87,D87)","v":1.2081795712174075},"lb/ft/hr","Viscosity as a function of pressure and entropy."]
["Prandtl"]
["Calcualted as Cp*my/tc"]
[" pr_pT",1,"psi",200,"deg F",{"$f":"pr_pT(B90,D90)","v":0.97012024380540329},"-"]
[" pr_ph",1,"psi",0.19,"btu/lb",{"$f":"pr_ph(B91,D91)","v":13.405629376747422},"-"]
["Thermal Conductivity"]
["Revised release on the IAPS Formulation 1985 for the Thermal Conductivity of ordinary water substance (IAPWS 1998)"]
[" tcL_p",1,"psi",null,null,{"$f":"tcL_p(B94)","v":0.36222613868369979},"btu/(h*ft*F)","Saturated vapour thermal conductivity"]
[" tcV_p",1,"psi",null,null,{"$f":"tcV_p(B95)","v":1.1197748930408077E-2},"btu/(h*ft*F)","Saturated liquid thermal conductivity"]
[" tcL_T",50,"deg F",null,null,{"$f":"tcL_T(B96)","v":0.33622668208052353},"btu/(h*ft*F)","Saturated vapour thermal conductivity"]
[" tcV_T",50,"deg F",null,null,{"$f":"tcV_T(B97)","v":9.9463765547369021E-3},"btu/(h*ft*F)","Saturated liquid thermal conductivity"]
[" tc_pT",1,"psi",50,"deg F",{"$f":"tc_pt(B98,D98)","v":0.33622852115403534},"btu/(h*ft*F)","Thermal conductivity as a function of pressure and temperature."]
[" tc_ph",1,"psi",100,"btu/(lb F)",{"$f":"tc_ph(B99,D99)","v":2.0136752000970422E-2},"btu/(h*ft*F)","Thermal conductivity as a function of pressure and enthalpy"]
[" tc_hs",100,"btu/lb",{"$f":"D73","v":0.18512524760110738},"btu/(lb F)",{"$f":"tc_hs(B100,D100)","v":0.37348196102713527},"btu/(h*ft*F)","Thermal conductivity as a function of enthalpy and entropy"]
["Surface Tension"]
["IAPWS Release on Surface Tension of Ordinary Water Substance, September 1994"]
[" st_T",100,"deg F",null,null,{"$f":"st_T(B104)","v":5.3422775305155355E-3},"lb/ft","Surface tension for two phase water/steam as a function of T"]
[" st_p",1,"psi",null,null,{"$f":"st_p(B104)","v":4.7830973201098753E-3},"lb/ft","Surface tension for two phase water/steam as a function of T"]
["Vapour fraction"]
[" x_ph",1,"psi",1000,"btu/lb",{"$f":"x_ph(B106,D106)","v":0.89819618742791218},null,"Vapour fraction as a function of pressure and enthalpy"]
[" x_ps",1,"psi",4,"btu/(lb F)",{"$f":"x_ps(B107,D107)","v":1},null,"Vapour fraction as a function of pressure and entropy."]
["Vapour Volume Fraction"]
["Observe that vapour volume fraction is very sensitive. Vapour volume is about 1000 times greater than liquid volume and therfore vapour volume fraction"]
["gets close to the accurancy of steam IF-97"]
[" vx_ph",1,"psi",418,"btu/lb",{"$f":"vx_ph(B111,D111)","v":0.99990450365888783},null,"Vapour volume fraction as a function of pressure and enthalpy"]
[" vx_ps",1,"psi",4,"btu/(lb F)",{"$f":"vx_ps(B112,D112)","v":1},null,"Vapour volume fraction as a function of pressure and entropy."]